bitfinex/quotes_SOLUSD_20250206
["timestamp","ask_amount","ask_price","bid_price","bid_amount"]
[1738873787016,0.13155001,191.37,191.35,1.0]
[1738873787017,1.69915001,191.37,191.35,1.0]
[1738873787533,1.69915001,191.37,191.34,1.0]
[1738873787838,1.69915001,191.37,191.35,1.0]
[1738873788222,1.69915001,191.37,191.34,1.0]
[1738873788416,1.69915001,191.37,191.35,1.0]
[1738873788632,1.69915001,191.37,191.34,1.0]
[1738873791039,1.69915001,191.37,191.33,1.0]
[1738873791040,14.7607874,191.36,191.33,1.0]
[1738873791242,14.7607874,191.34,191.31,1.0]
[1738873792140,14.7607874,191.34,191.32,1.0]
[1738873792329,14.7607874,191.36,191.32,1.0]
[1738873793445,16.3285874,191.35,191.32,1.0]
[1738873793965,16.3285874,191.35,191.31,1.0]
[1738873794321,14.7607874,191.34,191.3,1.0]
[1738873794820,14.7607874,191.31,191.3,1.0]
[1738873795342,0.11266649,191.31,191.28,1.0]
[1738873796340,1.68076649,191.31,191.28,1.0]
[1738873796555,1.68076649,191.31,191.29,1.0]
[1738873796742,1.68076649,191.31,191.3,1.0]
[1738873798031,1.68076649,191.31,191.28,1.063]
[1738873798561,16.44155389,191.31,191.28,1.063]
[1738873798734,16.44155389,191.31,191.28,0.063]
[1738873799844,14.7607874,191.29,191.28,0.063]
[1738873800249,14.7607874,191.29,191.28,0.0001]
[1738873800438,77.96810821,191.29,191.28,0.0001]
[1738873800644,79.53630821,191.29,191.28,0.0001]
[1738873801247,64.65003081,191.29,191.28,0.0001]
[1738873801563,79.41081821,191.29,191.28,0.0001]
[1738873804143,1.5682,191.29,191.28,0.0001]
[1738873804339,14.87345389,191.31,191.29,1.0]
[1738873804340,1.5682,191.3,191.29,1.0]
[1738873804537,1.5682,191.3,191.28,0.0001]
[1738873804538,1.68076649,191.31,191.3,1.0]
[1738873804953,0.11266649,191.31,191.3,1.0]
[1738873805174,0.11266649,191.31,191.3,15.7607874]
[1738873806290,0.11266649,191.31,191.3,21.77199577]
[1738873806574,0.11266649,191.31,191.3,35.5603143]
[1738873807944,0.11266649,191.31,191.3,15.7607874]
[1738873808347,0.11266649,191.31,191.3,1.0]
[1738873808858,0.11266649,191.31,191.3,15.7607874]
[1738873809872,0.14266649,191.31,191.3,15.7607874]
[1738873810663,0.14266649,191.31,191.3,1.0]
[1738873811969,1.71076649,191.31,191.3,1.0]
[1738873812348,16.47155389,191.31,191.28,0.0001]
[1738873812571,14.7607874,191.29,191.28,0.0001]
[1738873813671,1.5682,191.29,191.28,0.0001]
[1738873814979,1.5682,191.29,191.28,1.0001]
[1738873815477,1.66444967,191.29,191.28,1.0001]
[1738873819664,0.09624967,191.29,191.28,1.0001]
[1738873821351,0.12624967,191.29,191.28,15.7608874]
[1738873821548,0.12624967,191.29,191.28,34.90259593]
[1738873821754,0.12624967,191.29,191.28,56.61197366]
[1738873822055,0.11069227,191.3,191.29,17.51320853]
[1738873822255,0.11069227,191.3,191.29,47.03478333]
[1738873822555,0.11069227,191.3,191.29,184.23478333]
[1738873822767,0.11069227,191.3,191.29,188.08321542]
[1738873822959,9.227e-05,191.3,191.29,193.31081542]
[1738873823156,0.13340901,191.31,191.3,0.12549]
[1738873823359,0.13340901,191.31,191.3,44.21908991]
[1738873823571,0.13340901,191.31,191.3,45.21908991]
[1738873823873,0.13340901,191.31,191.3,186.267522]
[1738873824081,0.13340901,191.31,191.3,186.48381542]
[1738873824572,0.13340901,191.31,191.3,191.71111542]
[1738873825665,1.5671,191.44,191.34,21.37647]
[1738873825869,1.5671,191.44,191.34,50.33271807]
[1738873826655,1.5671,191.43,191.34,50.33271807]
[1738873827163,14.7607874,191.46,191.34,50.33271807]
[1738873827481,1.5672,191.42,191.34,50.45820807]
[1738873827681,1.5672,191.42,191.34,55.68440807]
[1738873827854,1.5671,191.44,191.34,55.68440807]
[1738873828374,1.5671,191.43,191.34,55.68440807]
[1738873828563,1.5671,191.43,191.34,59.53220553]
[1738873829162,1.567,191.44,191.34,59.53220553]
[1738873829365,1.5671,191.43,191.34,59.53220553]
[1738873829892,1.567,191.44,191.34,59.53220553]
[1738873830054,1.567,191.44,191.34,60.53220553]
[1738873830471,1.567,191.44,191.34,59.53220553]
[1738873830879,1.5671,191.43,191.34,59.53220553]
[1738873832001,1.5673,191.41,191.34,59.53220553]
[1738873832980,0.13277095,191.35,191.34,59.53220553]
[1738873833581,0.03,191.49,191.34,59.53220553]
[1738873833582,1.5032,191.47,191.36,1.37647]
[1738873833780,1.5668,191.47,191.37,56.47402897]
[1738873833970,1.5966,191.49,191.47,1.0]
[1738873834170,1.5966,191.49,191.41,20.0]
[1738873834171,1.5966,191.49,191.48,1.0]
[1738873834486,0.03,191.49,191.48,1.0]
[1738873835394,0.12576076,191.49,191.48,1.0]
[1738873835710,0.12576076,191.49,191.48,15.7607874]
[1738873835889,0.12576076,191.49,191.48,20.9831874]
[1738873836482,0.12576076,191.49,191.48,34.77150593]
[1738873836994,0.12576076,191.49,191.48,15.7607874]
[1738873837683,0.12576076,191.49,191.48,1.0]
[1738873838982,0.12576076,191.49,191.43,14.57153966]
[1738873838983,16.45314816,191.49,191.46,1.0]
[1738873839182,14.7607874,191.47,191.45,1.0]
[1738873839382,14.7607874,191.46,191.45,1.0]
[1738873839583,16.3276874,191.46,191.44,1.0]
[1738873839773,1.5669,191.46,191.45,1.0]
[1738873840096,1.5669,191.46,191.43,1.0]
[1738873840097,16.3276874,191.46,191.43,1.0]
[1738873840291,14.7607874,191.44,191.41,1.0]
[1738873840495,14.7607874,191.42,191.41,1.0]
[1738873840794,14.7607874,191.45,191.41,1.0]
[1738873841284,14.7607874,191.44,191.41,1.0]
[1738873841485,1.5671,191.43,191.41,1.0]
[1738873841686,16.3278874,191.43,191.41,1.0]
[1738873842004,16.3278874,191.43,191.4,1.0]
[1738873842174,16.3278874,191.43,191.41,1.0]
[1738873844018,1.6402,191.41,191.36,1.0]
[1738873844295,14.7607874,191.39,191.36,1.0]
[1738873844478,14.7607874,191.39,191.35,1.0]
[1738873844678,20.0,191.4,191.34,1.0]
[1738873844679,14.7607874,191.37,191.34,1.0]
[1738873844899,20.0,191.4,191.34,1.0]
[1738873844900,14.7607874,191.36,191.34,1.0]
[1738873845079,14.7607874,191.35,191.32,1.063]
[1738873845284,14.7607874,191.34,191.32,1.063]
[1738873845476,14.7607874,191.33,191.32,1.063]
[1738873845910,14.7607874,191.34,191.32,1.063]
[1738873846083,16.3282874,191.38,191.34,1.0]
[1738873846284,16.3282874,191.38,191.32,14.8237874]
[1738873846285,1.5675,191.38,191.36,1.0]
[1738873846511,1.5675,191.38,191.37,1.0]
[1738873847488,20.0,191.4,191.37,1.0]
[1738873847813,1.5674,191.39,191.38,1.0]
[1738873848731,1.5674,191.39,191.37,1.0]
[1738873849318,1.5674,191.39,191.38,1.0]
[1738873850120,1.5674,191.39,191.37,1.0]
[1738873850305,1.5674,191.39,191.36,1.0]
[1738873850686,0.03,191.43,191.4,1.0]
[1738873850891,1.5672,191.42,191.41,1.0]
[1738873851106,1.5672,191.42,191.4,1.0]
[1738873852012,23.61551626,191.41,191.38,1.0]
[1738873852209,23.61551626,191.4,191.38,1.0]
[1738873852512,23.61551626,191.41,191.37,1.0]
[1738873852723,23.61551626,191.41,191.38,1.0]
[1738873852895,1.5673,191.4,191.38,1.0]
[1738873853096,1.5673,191.4,191.36,1.0]
[1738873853288,29.10121626,191.4,191.36,1.0]
[1738873853492,29.10121626,191.4,191.37,1.0]
[1738873854020,20.0,191.38,191.37,1.0]
[1738873854219,23.61551626,191.39,191.37,1.0]
[1738873854596,5.4857,191.4,191.37,1.0]
[1738873855333,0.10815925,191.38,191.37,1.0]
[1738873856931,1.67565925,191.38,191.37,1.0]
[1738873858535,0.10815925,191.38,191.37,1.0]
[1738873858697,0.10815925,191.38,191.37,24.61551626]
[1738873859235,0.10815925,191.38,191.37,29.84091626]
[1738873859538,0.10815925,191.38,191.37,30.62446005]
[1738873859825,0.10815925,191.38,191.37,44.41277858]
[1738873860916,0.10581603,191.39,191.38,14.78831853]
[1738873861117,0.10581603,191.39,191.38,64.14484105]
[1738873861327,0.10581603,191.39,191.38,39.52932479]
[1738873862318,0.10581603,191.39,191.38,38.52932479]
[1738873862539,0.10581603,191.39,191.38,24.61551626]
[1738873862753,0.10581603,191.39,191.38,33.67225135]
[1738873863049,0.10581603,191.39,191.38,28.44705135]
[1738873863640,0.10581603,191.39,191.38,4.83153509]
[1738873864047,1.67321603,191.39,191.38,4.83153509]
[1738873864561,1.67321603,191.39,191.38,3.83153509]
[1738873864751,1.67321603,191.39,191.35,1.0]
[1738873864752,25.28873229,191.39,191.35,1.0]
[1738873864950,23.61551626,191.37,191.36,1.0]
[1738873865122,23.61551626,191.37,191.35,1.0]
[1738873865323,1.67321603,191.39,191.36,1.0]
[1738873865743,25.28873229,191.39,191.36,1.0]
[1738873866147,25.28873229,191.39,191.35,1.0]
[1738873867335,25.28873229,191.39,191.36,1.0]
[1738873867543,25.28873229,191.39,191.34,1.0]
[1738873868648,14.77016293,191.35,191.32,1.063]
[1738873868856,14.77016293,191.34,191.32,0.063]
[1738873869150,14.77016293,191.33,191.32,0.063]
[1738873869533,14.77016293,191.34,191.32,0.063]
[1738873869746,16.33806293,191.33,191.32,0.063]
[1738873870343,20.25796293,191.33,191.28,1.0001]
[1738873870663,20.25796293,191.33,191.29,1.0]
[1738873870828,20.25796293,191.33,191.28,1.0001]
[1738873871033,14.77016293,191.31,191.28,1.0001]
[1738873871454,14.77016293,191.32,191.29,1.0]
[1738873871752,20.25796293,191.33,191.29,1.0]
[1738873872238,1.5679,191.33,191.31,1.0]
[1738873872443,1.5679,191.33,191.32,1.0]
[1738873872644,63.21764684,191.39,191.35,1.0]
[1738873872645,1.5675,191.38,191.35,1.0]
[1738873872843,1.5675,191.38,191.34,1.0]
[1738873873049,1.5675,191.38,191.35,1.0]
[1738873873847,1.5675,191.38,191.36,1.0]
[1738873874550,1.5675,191.38,191.34,1.0]
[1738873874847,1.5675,191.38,191.36,1.0]
[1738873875237,1.5675,191.38,191.35,1.0]
[1738873875555,0.11031098,191.37,191.36,1.0]
[1738873876144,0.11031098,191.37,191.36,24.62069128]
[1738873878245,0.11031098,191.37,191.36,44.54389829]
[1738873878452,0.1011001,191.38,191.37,14.78831853]
[1738873878653,0.1011001,191.38,191.37,38.40900981]
[1738873879671,0.1011001,191.38,191.37,47.46922108]
[1738873880768,0.1011001,191.38,191.37,33.68090255]
[1738873880952,0.1011001,191.38,191.37,28.45550255]
[1738873881847,0.1311001,191.38,191.37,28.45550255]
[1738873882761,0.1311001,191.38,191.37,24.62069128]
[1738873884463,0.1311001,191.38,191.37,44.41803585]
[1738873885351,0.13797023,191.4,191.38,14.91380853]
[1738873885551,0.13797023,191.4,191.39,62.93859954]
[1738873886161,0.10108427,191.41,191.4,14.78831853]
[1738873886360,0.10108427,191.41,191.4,71.28329109]
[1738873886662,0.13140116,191.43,191.42,15.91380853]
[1738873886851,0.10588271,191.45,191.44,14.78831853]
[1738873887037,0.10588271,191.45,191.44,44.54117444]
[1738873888063,0.10588271,191.45,191.44,48.38190158]
[1738873889258,0.03,191.5,191.44,48.38190158]
[1738873889259,0.03,191.5,191.48,34.91380853]
[1738873889441,0.03,191.5,191.48,83.93822829]
[1738873890572,0.03,191.5,191.48,64.41444701]
[1738873890742,0.03,191.5,191.48,63.63140981]
[1738873891445,0.03,191.5,191.48,49.84309128]
[1738873891644,0.03,191.5,191.48,44.62069128]
[1738873891944,0.03,191.5,191.48,63.63140981]
[1738873892241,0.03,191.5,191.48,64.41451226]
[1738873894264,0.03,191.5,191.48,63.63140981]
[1738873894660,0.03,191.5,191.48,87.37759109]
[1738873894854,0.03,191.5,191.48,88.160637]
[1738873895451,0.13988217,191.49,191.48,88.160637]
[1738873895953,0.13988217,191.49,191.48,89.160637]
[1738873896673,0.09521933,191.53,191.48,89.160637]
[1738873896674,0.09521933,191.53,191.51,21.12549]
[1738873896970,0.14231352,191.58,191.54,14.91380853]
[1738873897258,0.14231352,191.58,191.55,14.78831853]
[1738873897560,0.14231352,191.58,191.55,29.51718479]
[1738873897939,0.14231352,191.58,191.55,34.73768479]
[1738873898850,0.03057817,191.57,191.56,0.12549]
[1738873899067,0.03,191.59,191.58,33.78831853]
[1738873899264,0.03,191.63,191.62,21.0]
[1738873899466,0.03,191.63,191.62,35.57091962]
[1738873899952,0.03,191.63,191.62,40.78951962]
[1738873900353,1.5647,191.73,191.7,1.0]
[1738873900571,1.5647,191.73,191.72,23.55391766]
[1738873900744,1.5409,191.74,191.72,24.55391766]
[1738873901072,1.5409,191.74,191.73,23.55391766]
[1738873901073,3.1055,191.74,191.73,23.55391766]
[1738873901646,1.5409,191.74,191.73,24.55391766]
[1738873901960,0.132,191.78,191.73,24.55391766]
[1738873901961,1.5851,191.79,191.76,1.0]
[1738873902165,1.5851,191.79,191.78,23.55391766]
[1738873902559,1.7281,191.79,191.78,23.55391766]
[1738873903154,3.2923,191.79,191.76,23.55391766]
[1738873903463,3.2923,191.79,191.74,24.55391766]
[1738873903852,3.2923,191.79,191.75,24.55391766]
[1738873904083,3.2923,191.79,191.7,23.55391766]
[1738873904084,3.2923,191.79,191.77,24.55391766]
[1738873904244,3.2923,191.79,191.77,23.55391766]
[1738873904446,1.7281,191.79,191.78,24.55391766]
[1738873904648,0.143,191.79,191.78,24.55391766]
[1738873907146,0.173,191.79,191.78,24.55391766]
[1738873908755,0.12549,191.88,191.78,24.55391766]
[1738873908756,1.5962,191.89,191.85,1.0]
[1738873908947,1.5962,191.89,191.88,23.55391766]
[1738873909354,1.5962,191.89,191.88,23.38401766]
[1738873910004,1.5962,191.89,191.88,24.38401766]
[1738873910168,1.5632,191.92,191.9,1.0]
[1738873910484,1.5632,191.92,191.9,23.55391766]
[1738873910668,1.563,191.93,191.9,24.55391766]
[1738873911485,1.563,191.93,191.91,23.55391766]
[1738873911665,1.563,191.93,191.92,23.55391766]
[1738873911979,3.1885,191.99,191.93,1.0]
[1738873912167,3.1885,191.99,191.95,23.55391766]
[1738873912371,20.0,191.97,191.94,24.55391766]
[1738873912563,20.0,191.97,191.92,23.55391766]
[1738873912767,1.5628,191.96,191.92,24.55391766]
[1738873913692,1.5628,191.96,191.93,1.0]
[1738873913895,1.5628,191.96,191.95,23.55391766]
[1738873914102,21.5628,191.96,191.91,23.55391766]
[1738873914275,23.67940766,191.95,191.88,23.55391766]
[1738873914593,23.67940766,191.95,191.89,1.0]
[1738873915157,5.4703,191.94,191.89,1.0]
[1738873915358,0.10830834,191.9,191.89,24.55391766]
[1738873915577,0.10830834,191.9,191.89,23.55391766]
[1738873915976,0.10830834,191.9,191.89,24.55391766]
[1738873916361,0.10830834,191.9,191.89,1.0]
[1738873916565,0.10830834,191.9,191.89,48.10783532]
[1738873916872,0.10830834,191.9,191.89,24.55391766]
[1738873917883,0.10830834,191.9,191.89,66.85647385]
[1738873918065,0.10830834,191.9,191.89,67.63793052]
[1738873918870,0.11026425,191.91,191.9,14.53733853]
[1738873919076,0.09859898,191.98,191.94,1.0]
[1738873919271,0.09859898,191.98,191.96,1.0]
[1738873919680,0.09859898,191.98,191.96,24.55391766]
[1738873920379,1.65870316,191.97,191.96,23.55391766]
[1738873920580,0.09600316,191.97,191.96,24.55391766]
[1738873920789,1.65870316,191.97,191.96,23.55391766]
[1738873921001,0.09600316,191.97,191.96,24.55391766]
[1738873921784,3.2161,192.09,191.98,34.53733853]
[1738873921973,3.2161,192.09,192.08,23.55391766]
[1738873922573,3.2161,192.09,192.08,23.39401766]
[1738873922997,1.6544,192.09,192.08,24.39401766]
[1738873923377,1.5616,192.11,192.09,1.0]
[1738873923575,0.15549,192.17,192.1,48.10783532]
[1738873923576,0.03,192.17,192.1,48.10783532]
[1738873923778,1.5611,192.16,192.15,23.55391766]
[1738873923989,0.03,192.17,192.15,23.55391766]
[1738873924197,0.03,192.17,192.16,24.55391766]
[1738873924387,1.5911,192.17,192.16,21.05391766]
[1738873924779,1.5911,192.17,192.15,23.55391766]
[1738873924978,0.03,192.17,192.15,23.55391766]
[1738873925277,0.03,192.17,192.13,23.55391766]
[1738873925472,0.03,192.17,192.12,23.55391766]
[1738873925672,0.03,192.17,192.13,23.55391766]
[1738873926194,0.03,192.17,192.16,23.55391766]
[1738873926493,0.03,192.17,192.16,24.55391766]
[1738873928177,0.03,192.17,192.16,29.75781766]
[1738873928594,3.2148,192.25,192.23,1.0]
[1738873928905,1.7183,192.27,192.24,24.55391766]
[1738873929195,1.7183,192.27,192.26,23.55391766]
[1738873929581,1.7183,192.27,192.23,23.55391766]
[1738873929900,1.7183,192.27,192.22,24.35401766]
[1738873930269,1.7183,192.27,192.23,23.55391766]
[1738873930472,1.7183,192.27,192.22,24.35401766]
[1738873930673,5.619,192.27,192.22,24.35401766]
[1738873931622,5.619,192.27,192.18,24.35401766]
[1738873931623,43.55391766,192.24,192.18,24.35401766]
[1738873931801,23.55391766,192.22,192.15,23.55391766]
[1738873932005,23.55391766,192.22,192.13,23.55391766]
[1738873932006,23.55391766,192.19,192.13,23.55391766]
[1738873932187,30.17151766,192.19,192.12,24.35401766]
[1738873932497,23.55391766,192.18,192.11,23.55391766]
[1738873932706,1.5611,192.17,192.16,0.8001]
[1738873932889,1.5609,192.19,192.16,0.8001]
[1738873933087,6.3539,192.24,192.2,0.8001]
[1738873933275,6.3539,192.24,192.21,23.55391766]
[1738873933481,6.3839,192.24,192.19,23.55391766]
[1738873933681,6.5838,192.24,192.19,23.55391766]
[1738873934090,5.4621,192.23,192.19,23.55391766]
[1738873934582,5.662,192.23,192.18,23.55391766]
[1738873934916,5.662,192.23,192.1,23.55391766]
[1738873934917,5.662,192.23,192.17,23.55391766]
[1738873935124,5.4621,192.23,192.17,24.35401766]
[1738873935294,1.5606,192.23,192.21,23.55391766]
[1738873935506,0.10866099,192.22,192.2,24.35401766]
[1738873935798,0.10866099,192.22,192.19,23.55391766]
[1738873936208,0.10866099,192.22,192.17,23.55391766]
[1738873936588,0.10866099,192.22,192.16,24.35401766]
[1738873937295,5.4626,192.21,192.15,23.55391766]
[1738873937602,5.4626,192.21,192.17,24.35401766]
[1738873938189,1.5607,192.21,192.18,0.8001]
[1738873938592,1.5607,192.21,192.17,24.35401766]
[1738873938801,1.5607,192.21,192.17,23.55391766]
[1738873939006,23.55391766,192.2,192.13,24.35401766]
[1738873939207,5.4632,192.19,192.13,24.35401766]
[1738873939595,5.4632,192.19,192.14,24.35401766]
[1738873940005,5.4632,192.19,192.14,23.55391766]
[1738873940211,5.4632,192.19,192.13,23.55391766]
[1738873940418,5.4632,192.19,192.14,24.35401766]
[1738873940792,5.4632,192.19,192.15,23.55391766]
[1738873941221,3.9023,192.19,192.15,23.55391766]
[1738873941392,3.9023,192.19,192.14,23.55391766]
[1738873941587,3.9023,192.19,192.12,23.55391766]
[1738873941588,27.65611766,192.19,192.12,23.55391766]
[1738873941829,23.55391766,192.17,192.1,24.35401766]
[1738873942120,27.45621766,192.19,192.13,23.55391766]
[1738873942298,7.9776,192.14,192.05,0.8001]
[1738873942494,7.9776,192.14,192.07,24.35401766]
[1738873942692,31.53151766,192.14,192.07,24.35401766]
[1738873943029,7.9776,192.14,192.09,24.35401766]
[1738873943226,7.9776,192.14,192.09,0.8001]
[1738873943394,1.5614,192.13,192.09,0.8001]
[1738873943921,1.5614,192.13,192.06,24.35401766]
[1738873944229,25.11531766,192.13,192.06,24.35401766]
[1738873944392,23.55391766,192.12,192.06,0.8001]
[1738873944592,23.55391766,192.11,192.04,23.55391766]
[1738873944806,23.55391766,192.11,192.03,0.8001]
[1738873944807,1.5614,192.13,192.09,24.35401766]
[1738873945111,1.5614,192.13,192.1,23.55391766]
[1738873945501,1.5614,192.13,192.11,23.55391766]
[1738873945701,1.5614,192.13,192.12,23.55391766]
[1738873946027,1.5611,192.17,192.14,0.8001]
[1738873946201,1.5611,192.17,192.16,23.55391766]
[1738873947087,1.561,192.18,192.15,23.55391766]
[1738873948599,1.561,192.18,192.16,23.55391766]
[1738873948800,1.561,192.18,192.17,23.55391766]
[1738873948999,3.9021,192.2,192.16,23.55391766]
[1738873949716,27.45601766,192.2,192.14,0.8001]
[1738873949906,23.87930766,192.19,192.12,24.35401766]
[1738873950106,23.87930766,192.19,192.12,23.55391766]
[1738873950302,20.0,192.17,192.12,23.55391766]
[1738873950607,9.49009,192.21,192.18,0.8001]
[1738873950608,1.5607,192.21,192.18,0.8001]
[1738873950801,1.5607,192.21,192.18,23.55391766]
[1738873951214,1.5607,192.21,192.18,24.35401766]
[1738873951612,1.5607,192.21,192.19,24.35401766]
[1738873952208,1.5607,192.21,192.19,23.55391766]
[1738873952731,1.5607,192.21,192.18,23.55391766]
[1738873952923,20.0,192.2,192.16,23.55391766]
[1738873953124,1.5609,192.19,192.17,24.35401766]
[1738873953304,1.5609,192.19,192.18,23.55391766]
[1738873953504,1.5608,192.21,192.19,0.8001]
[1738873953701,1.5608,192.21,192.19,23.55391766]
[1738873953913,1.5608,192.21,192.19,24.35401766]
[1738873954156,1.5608,192.21,192.19,23.55391766]
[1738873954542,1.5608,192.21,192.18,24.35401766]
[1738873954831,1.5608,192.21,192.17,23.55391766]
[1738873955340,0.09646614,192.18,192.16,23.55391766]
[1738873955637,0.09646614,192.18,192.17,23.55391766]
[1738873956040,0.09646614,192.18,192.15,23.55391766]
[1738873956205,0.09646614,192.18,192.14,23.55391766]
[1738873956403,0.22195614,192.18,192.13,23.55391766]
[1738873956604,5.464,192.17,192.12,23.55391766]
[1738873956843,20.0,192.16,192.12,23.55391766]
[1738873957217,20.0,192.16,192.13,23.55391766]
[1738873957722,1.5611,192.17,192.15,23.55391766]
[1738873957902,0.09646614,192.18,192.16,24.35401766]
[1738873958105,0.09646614,192.18,192.16,0.8001]
[1738873958309,0.09646614,192.18,192.17,0.8001]
[1738873958510,0.09646614,192.18,192.17,23.55391766]
[1738873958744,0.09646614,192.18,192.17,24.35401766]
[1738873959108,0.09646614,192.18,192.17,23.55391766]
[1738873959308,1.65746614,192.18,192.17,23.55391766]
[1738873959508,0.12549,192.17,192.13,0.063]
[1738873959736,20.0,192.13,192.06,0.8001]
[1738873960109,20.0,192.13,192.09,23.61691766]
[1738873960511,20.1999,192.13,192.09,0.063]
[1738873960830,1.5615,192.12,192.09,0.063]
[1738873961422,1.5615,192.12,192.09,23.61691766]
[1738873962234,1.5615,192.12,192.11,23.55391766]
[1738873962447,1.5615,192.12,192.1,23.55391766]
[1738873962744,3.9037,192.13,192.1,23.55391766]
[1738873963439,3.9037,192.13,192.09,23.61691766]
[1738873963644,24.1036,192.13,192.09,23.61691766]
[1738873963831,0.12549,192.12,192.09,0.063]
[1738873964014,0.1999,192.11,192.09,0.0001]
[1738873964442,20.0,192.1,192.09,0.0001]
[1738873964729,1.5616,192.1,192.09,23.55401766]
[1738873964912,1.5615,192.12,192.09,23.55401766]
[1738873965116,1.5612,192.15,192.11,24.35401766]
[1738873965351,0.09646614,192.18,192.14,0.8001]
[1738873965561,1.65756614,192.18,192.14,0.8001]
[1738873965856,1.65756614,192.18,192.17,23.55391766]
[1738873967218,0.09646614,192.18,192.17,23.55391766]
[1738873967556,0.09646614,192.18,192.17,24.35401766]
[1738873967916,0.11256287,192.21,192.2,0.8001]
[1738873968122,0.11256287,192.21,192.2,47.90793532]
[1738873968548,0.11256287,192.21,192.2,23.55391766]
[1738873968763,0.11256287,192.21,192.2,47.90793532]
[1738873972261,0.11256287,192.21,192.2,24.35401766]
[1738873972939,0.11256287,192.21,192.2,53.11083532]
[1738873975050,0.13065366,192.22,192.21,0.8001]
[1738873975234,0.09982623,192.25,192.24,0.8001]
[1738873975458,0.20499264,192.27,192.26,0.8001]
[1738873975676,0.09859387,192.28,192.26,24.35401766]
[1738873975973,0.09859387,192.28,192.27,24.35401766]
[1738873976346,0.09859387,192.28,192.27,23.55391766]
[1738873976547,0.09859387,192.28,192.27,24.35401766]
[1738873977233,0.09859387,192.28,192.27,29.55501766]
[1738873977433,0.1095195,192.29,192.28,0.8001]
[1738873977739,0.03,192.41,192.36,0.8001]
[1738873977740,1.5592,192.4,192.36,0.8001]
[1738873977953,1.5592,192.4,192.39,23.55391766]
[1738873978452,0.158,192.4,192.39,23.55391766]
[1738873978861,0.158,192.4,192.39,24.35401766]
[1738873979047,0.158,192.4,192.39,47.90793532]
[1738873979651,0.158,192.4,192.39,24.35401766]
[1738873979852,1.2768,192.45,192.44,23.55391766]
[1738873980058,1.2768,192.45,192.43,23.55391766]
[1738873980235,1.2768,192.45,192.44,23.55391766]
[1738873980446,1.2768,192.45,192.43,23.55391766]
[1738873980647,1.2768,192.45,192.42,23.55391766]
[1738873980856,25.03061766,192.45,192.38,23.55391766]
[1738873981154,28.92771766,192.45,192.38,23.55391766]
[1738873981344,5.3738,192.45,192.39,23.55391766]
[1738873981550,5.3738,192.45,192.4,23.55391766]
[1738873982058,5.3738,192.45,192.39,23.55391766]
[1738873982457,0.32539,192.44,192.38,23.55391766]
[1738873982843,0.32539,192.44,192.39,23.55391766]
[1738873983054,5.1739,192.45,192.4,23.55391766]
[1738873983254,24.55391766,192.49,192.43,23.55391766]
[1738873983456,5.4551,192.48,192.43,23.55391766]
[1738873983967,20.0,192.44,192.39,23.55391766]
[1738873984260,43.55391766,192.44,192.37,23.55391766]
[1738873984451,30.20891766,192.48,192.41,23.55391766]
[1738873984658,20.0,192.45,192.41,23.55391766]
[1738873984965,20.0,192.44,192.4,23.55391766]
[1738873985162,20.0,192.44,192.42,23.55391766]
[1738873985357,1.559,192.43,192.4,23.55391766]
[1738873985543,1.559,192.43,192.42,23.55391766]
[1738873985743,1.5585,192.49,192.43,0.8001]
[1738873985949,1.5585,192.49,192.35,5.1987]
[1738873985950,1.5585,192.49,192.48,23.55391766]
[1738873986134,3.8955,192.53,192.48,23.55391766]
[1738873986334,3.8955,192.53,192.47,0.8001]
[1738873986745,1.5581,192.54,192.5,23.55391766]
[1738873986953,1.5581,192.54,192.51,23.55391766]
[1738873987250,20.0,192.53,192.51,23.55391766]
[1738873987436,1.5582,192.52,192.51,23.55391766]
[1738873987842,7.6878,192.56,192.51,23.55391766]
[1738873988042,1.558,192.55,192.54,23.55391766]
[1738873988547,1.558,192.55,192.53,23.55391766]
[1738873988749,1.558,192.55,192.54,23.55391766]
[1738873989451,5.4516,192.6,192.54,23.55391766]
[1738873989646,23.55391766,192.59,192.53,23.55391766]
[1738873989853,24.55391766,192.58,192.51,23.55391766]